fUST/lending_fUST_20240518
["ID","MTS","AMOUNT","RATE_DAILY","PERIOD"]
[327384384,1716036641826,-617.62,0.00016438,2]
[327384385,1716036641836,-606.89,0.00016438,2]
[327384386,1716036641845,-500.0,0.00016438,2]
[327384387,1716036641855,-151.0,0.00016438,2]
[327384388,1716036641864,-500.0,0.00016438,2]
[327384389,1716036641874,-151.0,0.00016438,2]
[327384390,1716036641883,-421.28285617,0.00016438,2]
[327384391,1716036641892,-151.0,0.00016438,2]
[327384392,1716036641901,-500.0,0.00016438,2]
[327384393,1716036641910,-151.0,0.00016438,2]
[327384394,1716036641919,-500.0,0.00016438,2]
[327384395,1716036641929,-500.0,0.00016438,2]
[327384396,1716036641938,-500.0,0.00016438,2]
[327384397,1716036641947,-500.0,0.00016438,2]
[327384398,1716036641956,-470.50456751,0.00016438,2]
[327384399,1716036641967,-500.0,0.00016438,2]
[327384400,1716036641977,-500.0,0.00016438,2]
[327384401,1716036641986,-501.01540615,0.00016438,2]
[327384402,1716036641996,-1297.14,0.00016438,2]
[327384403,1716036642005,-2472.85,0.00016438,2]
[327384404,1716036642015,-151.0,0.00016438,2]
[327384405,1716036642024,-500.0,0.00016438,2]
[327384406,1716036642034,-500.0,0.00016438,2]
[327384407,1716036642044,-1193.579168,0.00016438,2]
[327384408,1716036642053,-1193.579168,0.00016438,2]
[327384409,1716036642063,-500.0,0.00016438,2]
[327384410,1716036642074,-500.0,0.00016438,2]
[327384411,1716036642083,-1193.579168,0.00016438,2]
[327384412,1716036642092,-1193.579168,0.00016438,2]
[327384413,1716036642102,-500.0,0.00016438,2]
[327384414,1716036642111,-500.0,0.00016438,2]
[327384415,1716036642121,-502.67621234,0.00016438,2]
[327384416,1716036642130,-607.97,0.00016438,2]
[327384417,1716036642138,-5680.96,0.00016438,2]
[327384418,1716036642148,-583.55215283,0.00016438,2]
[327384419,1716036642158,-500.0,0.00016438,2]
[327384420,1716036642167,-271.746586,0.00016438,2]
[327384421,1716036642177,-500.0,0.00016438,2]
[327384422,1716036642186,-271.746586,0.00016438,2]
[327384423,1716036642195,-500.0,0.00016438,2]
[327384424,1716036642205,-271.746586,0.00016438,2]
[327384425,1716036642214,-271.746586,0.00016438,2]
[327384426,1716036642223,-500.0,0.00016438,2]
[327384427,1716036642233,-500.0,0.00016438,2]
[327384428,1716036642243,-151.0,0.00016438,2]
[327384429,1716036642252,-501.40175283,0.00016438,2]
[327384430,1716036642261,-500.0,0.00016438,2]
[327384431,1716036642271,-500.0,0.00016438,2]
[327384432,1716036642280,-500.0,0.00016438,2]
[327384433,1716036642290,-500.0,0.00016438,2]
[327384434,1716036642299,-500.0,0.00016438,2]
[327384435,1716036642308,-151.0,0.00016438,2]
[327384436,1716036642318,-500.0,0.00016438,2]
[327384437,1716036642329,-500.0,0.00016438,2]
[327384438,1716036642338,-256.0234,0.00016438,2]
[327384439,1716036642347,-151.0,0.00016438,2]
[327384440,1716036642356,-270.53406,0.00016438,2]
[327384441,1716036642367,-500.0,0.00016438,2]
[327384442,1716036642377,-500.0,0.00016438,2]
[327384443,1716036642386,-500.0,0.00016438,2]
[327384444,1716036642397,-500.0,0.00016438,2]
[327384445,1716036642406,-517.88,0.00016438,2]
[327384446,1716036642416,-500.0,0.00016438,2]
[327384447,1716036642426,-500.0,0.00016438,2]
[327384448,1716036642436,-500.0,0.00016438,2]
[327384449,1716036642445,-421.26947258,0.00016438,2]
[327384450,1716036642766,-78.73052742,0.00016438,2]
[327384451,1716036642776,-500.0,0.00016438,2]
[327384452,1716036642785,-500.0,0.00016438,2]
[327384453,1716036642794,-500.0,0.00016438,2]
[327384454,1716036642803,-500.0,0.00016438,2]
[327384455,1716036642812,-500.0,0.00016438,2]
[327384456,1716036642822,-500.0,0.00016438,2]
[327384457,1716036642831,-500.0,0.00016438,2]
[327384458,1716036642840,-500.0,0.00016438,2]
[327384459,1716036642849,-500.0,0.00016438,2]
[327384460,1716036642858,-500.0,0.00016438,2]
[327384461,1716036642867,-500.0,0.00016438,2]
[327384462,1716036642877,-500.0,0.00016438,2]
[327384463,1716036642886,-500.0,0.00016438,2]
[327384464,1716036642895,-500.0,0.00016438,2]
[327384465,1716036642904,-502.60116254,0.00016438,2]
[327384466,1716036642913,-500.0,0.00016438,2]
[327384467,1716036642924,-500.0,0.00016438,2]
[327384468,1716036642933,-500.0,0.00016438,2]
[327384469,1716036642942,-283.18,0.00016438,2]
[327384470,1716036642951,-630.28,0.00016438,2]
[327384471,1716036642960,-500.0,0.00016438,2]
[327384472,1716036642969,-500.0,0.00016438,2]
[327384473,1716036642978,-151.0,0.00016438,2]
[327384475,1716036642988,-151.0,0.00016438,2]
[327384476,1716036642997,-500.0,0.00016438,2]
[327384477,1716036643006,-500.0,0.00016438,2]
[327384479,1716036643015,-151.47818068,0.00016438,2]
[327384480,1716036643025,-500.0,0.00016438,2]
[327384482,1716036643034,-3095.58,0.00016438,2]
[327384484,1716036643043,-3095.58,0.00016438,2]
[327384486,1716036643052,-500.0,0.00016438,2]
[327384487,1716036643061,-2842.91559158,0.00016438,2]
[327384505,1716036643880,-252.66440842,0.00016438,2]
[327384506,1716036643893,-1023.83559158,0.00016438,2]
[327384512,1716036644119,-2071.74440842,0.00016438,2]
[327384513,1716036644129,-3095.58,0.00016438,2]
[327384514,1716036644138,-1245.02299454,0.00016438,2]
[327384584,1716036646664,-186.39835571,0.00016437,2]
[327384585,1716036646673,-1084.51096583,0.00016437,2]
[327384586,1716036646682,-1094.28810056,0.00016437,2]
[327384587,1716036646691,-1850.55700546,0.00016438,2]
[327384588,1716036646701,-3095.58,0.00016438,2]
[327384589,1716036646711,-3095.58,0.00016438,2]
[327384590,1716036646720,-500.0,0.00016438,2]
[327384591,1716036646729,-3095.58,0.00016438,2]
[327384592,1716036646738,-3095.58,0.00016438,2]
[327384593,1716036646748,-3095.58,0.00016438,2]
[327384594,1716036646758,-3095.58,0.00016438,2]
[327384595,1716036646767,-3095.58,0.00016438,2]
[327384596,1716036646776,-500.0,0.00016438,2]
[327384597,1716036646785,-500.0,0.00016438,2]
[327384598,1716036646794,-500.0,0.00016438,2]
[327384599,1716036646804,-500.0,0.00016438,2]
[327384600,1716036646812,-500.0,0.00016438,2]
[327384601,1716036646823,-500.0,0.00016438,2]
[327384602,1716036646832,-500.0,0.00016438,2]
[327384603,1716036646841,-875.94,0.00016438,2]
[327384604,1716036646850,-500.0,0.00016438,2]
[327384605,1716036646860,-1101.21,0.00016438,2]
[327384606,1716036646869,-500.0,0.00016438,2]
[327384607,1716036646879,-500.0,0.00016438,2]
[327384608,1716036646888,-500.0,0.00016438,2]
[327384609,1716036646897,-500.0,0.00016438,2]
[327384610,1716036646906,-500.0,0.00016438,2]
[327384611,1716036646915,-151.0,0.00016438,2]
[327384612,1716036646924,-151.0,0.00016438,2]
[327384613,1716036646933,-151.0,0.00016438,2]
[327384614,1716036646942,-151.0,0.00016438,2]
[327384615,1716036646952,-151.0,0.00016438,2]
[327384616,1716036646961,-151.0,0.00016438,2]
[327384617,1716036646970,-500.0,0.00016438,2]
[327384618,1716036646979,-500.0,0.00016438,2]
[327384619,1716036646988,-500.0,0.00016438,2]
[327384620,1716036646997,-500.0,0.00016438,2]
[327384621,1716036647007,-501.52072373,0.00016438,2]
[327384622,1716036647016,-532.01,0.00016438,2]
[327384623,1716036647026,-520.75694388,0.00016438,2]
[327384624,1716036647035,-500.0,0.00016438,2]
[327384625,1716036647044,-1300.44,0.00016438,2]
[327384626,1716036647053,-500.0,0.00016438,2]
[327384627,1716036647062,-500.0,0.00016438,2]
[327384628,1716036647073,-500.0,0.00016438,2]
[327384629,1716036647082,-1670.752333,0.00016438,2]
[327384630,1716036647091,-1670.752333,0.00016438,2]
[327384631,1716036647100,-500.0,0.00016438,2]
[327384632,1716036647109,-799.39,0.00016438,2]
[327384633,1716036647119,-1670.752333,0.00016438,2]
[327384634,1716036647128,-1670.752333,0.00016438,2]
[327384635,1716036647137,-500.0,0.00016438,2]
[327384636,1716036647147,-500.0,0.00016438,2]
[327384637,1716036647156,-500.0,0.00016438,2]
[327384638,1716036647166,-500.0,0.00016438,2]
[327384639,1716036647175,-500.0,0.00016438,2]
[327384640,1716036647184,-500.0,0.00016438,2]
[327384641,1716036647193,-530.12,0.00016438,2]
[327384642,1716036647203,-227.38964441,0.00016438,2]
[327384643,1716036647212,-500.0,0.00016438,2]
[327384644,1716036647221,-500.0,0.00016438,2]
[327384645,1716036647231,-500.0,0.00016438,2]
[327384646,1716036647240,-502.69958719,0.00016438,2]
[327384647,1716036647250,-500.0,0.00016438,2]
[327384648,1716036647259,-500.0,0.00016438,2]
[327384649,1716036647268,-500.0,0.00016438,2]
[327384650,1716036647278,-500.0,0.00016438,2]
[327384651,1716036647287,-225.52933069,0.00016438,2]
[327384652,1716036647297,-598.28908808,0.00016438,2]
[327384653,1716036647306,-500.0,0.00016438,2]
[327384654,1716036647315,-151.0,0.00016438,2]
[327384655,1716036647326,-151.0,0.00016438,2]
[327384656,1716036647335,-500.0,0.00016438,2]
[327384657,1716036647344,-728.91,0.00016438,2]
[327384658,1716036647353,-500.0,0.00016438,2]
[327384659,1716036647362,-502.66221055,0.00016438,2]
[327384660,1716036647372,-200.869741,0.00016438,2]
[327384661,1716036647380,-200.869741,0.00016438,2]
[327384662,1716036647390,-500.0,0.00016438,2]
[327384663,1716036647399,-200.869741,0.00016438,2]
[327384664,1716036647407,-200.869741,0.00016438,2]
[327384665,1716036647417,-500.0,0.00016438,2]
[327384666,1716036647426,-500.0,0.00016438,2]
[327384667,1716036647435,-500.0,0.00016438,2]
[327384668,1716036647444,-500.0,0.00016438,2]
[327384669,1716036647453,-500.0,0.00016438,2]
[327384670,1716036647462,-500.0,0.00016438,2]
[327384671,1716036647471,-553.92242521,0.00016438,2]
[327384672,1716036647481,-429.603549,0.00016438,2]
[327384673,1716036647490,-429.603549,0.00016438,2]
[327384674,1716036647499,-429.603549,0.00016438,2]
[327384675,1716036647512,-429.603549,0.00016438,2]
[327384676,1716036647523,-274.17394813,0.000165,2]
[327384677,1716036647532,-584.0,0.00016673,2]
[327384678,1716036647541,-193.32432587,0.00016673,3]
[327384685,1716036691854,154.7215013,9.999e-05,2]
[327384686,1716036700893,154.7215013,9.999e-05,2]
[327384688,1716036730349,158.51655577,9.999e-05,2]
[327384689,1716036738161,757.22,0.00010959,2]
[327384692,1716037057856,599.00341454,0.00016438,4]
[327384699,1716037518226,311.40765475,5.609e-05,2]
[327384701,1716037535820,234.3036698,5.609e-05,2]
[327384702,1716037537956,16146.7377332,5.609e-05,2]
[327384703,1716037541493,513.4844886,5.608e-05,2]
[327384704,1716037543586,1043.25678867,5.608e-05,2]
[327384705,1716037549716,281.54915077,5.609e-05,2]
[327384706,1716037551708,234.3036698,5.609e-05,2]
[327384707,1716037555836,952.28354199,5.609e-05,2]
[327384708,1716037555867,11539.96406526,5.609e-05,2]
[327384709,1716037567712,257.23965697,5.609e-05,2]
[327384710,1716037575712,234.3036698,5.609e-05,2]
[327384716,1716037593715,294.74083479,5.609e-05,2]
[327384717,1716037599266,156.3019629,5.609e-05,2]
[327384718,1716037661146,1289.347134,6.335e-05,2]
[327384720,1716037748531,250.0,6.171e-05,2]
[327384723,1716037824721,1021.472207,6.088e-05,2]
[327384760,1716037831827,-230.80285918,7.08e-05,2]
[327384762,1716037831836,-117.06598836,7.081e-05,2]
[327384765,1716037831848,-39.38700368,7.081e-05,2]
[327384766,1716037831857,-154.81422293,7.081e-05,2]
[327384769,1716037831867,-154.81422293,7.081e-05,2]
[327384770,1716037831878,-539.22196043,7.081e-05,2]
[327384920,1716037837826,-285.03925166,7.079e-05,2]
[327384922,1716037837837,-492.86440031,7.08e-05,2]
[327384924,1716037837848,-154.81422293,7.08e-05,2]
[327384926,1716037837860,-1581.42130168,7.08e-05,2]
[327384927,1716037837871,-154.81422293,7.08e-05,2]
[327384928,1716037837882,-1417.90635911,7.08e-05,2]
[327384929,1716037837894,-2597.41542727,7.08e-05,2]
[327384930,1716037837905,-158.51655577,7.08e-05,2]
[327384931,1716037837917,-316.15927372,7.08e-05,2]
[327384932,1716037837928,-2634.32657847,7.08e-05,2]
[327384933,1716037837939,-555.77352154,7.081e-05,2]
[327384934,1716037837951,-154.81422293,7.081e-05,2]
[327384935,1716037837963,-154.81422293,7.081e-05,2]
[327384936,1716037837974,-154.81422293,7.081e-05,2]
[327384937,1716037837986,-154.81422293,7.082e-05,2]
[327384938,1716037838001,-154.81422293,7.082e-05,2]
[327384939,1716037838013,-194.45514723,7.082e-05,2]
[327384940,1716037838025,-154.81422293,7.082e-05,2]
[327384941,1716037838038,-154.81422293,7.082e-05,2]
[327384942,1716037838050,-186.89118678,7.082e-05,2]
[327384943,1716037838061,-11053.04296534,7.082e-05,2]
[327384944,1716037838074,-7894.33531896,7.082e-05,2]
[327384945,1716037838085,-395.32769299,7.082e-05,2]
[327384946,1716037838096,-154.81422293,7.082e-05,2]
[327384947,1716037838107,-2114.46454517,7.082e-05,2]
[327384948,1716037838118,-154.81422293,7.083e-05,2]
[327384949,1716037838130,-410.45768134,7.083e-05,2]
[327384950,1716037838144,-909.64823199,7.083e-05,2]
[327384951,1716037838155,-522.61290648,7.083e-05,2]
[327384952,1716037838166,-330.96158487,7.083e-05,2]
[327384953,1716037838177,-3062.48237355,7.083e-05,2]
[327384954,1716037838188,-1496.37630434,7.083e-05,2]
[327384955,1716037838199,-2634.32657847,7.083e-05,2]
[327384956,1716037838211,-1403.26792763,7.083e-05,2]
[327384957,1716037838222,-1716.94679494,7.084e-05,2]
[327384958,1716037838233,-835.50091713,7.084e-05,2]
[327384959,1716037838244,-2465.73517847,7.084e-05,2]
[327384960,1716037838255,-2678.78839717,7.084e-05,2]
[327384961,1716037838267,-690.19911136,7.084e-05,2]
[327384962,1716037838278,-154.81422293,7.084e-05,2]
[327384963,1716037838427,-157.93380693,7.084e-05,2]
[327384964,1716037838445,-818.31964662,7.084e-05,2]
[327384965,1716037838455,-528.43613852,7.084e-05,2]
[327384966,1716037838464,-702.56585547,7.084e-05,2]
[327384967,1716037838474,-525.64777211,7.085e-05,2]
[327384968,1716037838484,-154.81422293,7.085e-05,2]
[327384969,1716037838493,-513.4844886,7.085e-05,2]
[327384970,1716037838502,-154.81422293,7.085e-05,2]
[327384971,1716037838512,-1338.92794901,7.085e-05,2]
[327384972,1716037838521,-238.75882037,7.085e-05,2]
[327384973,1716037838531,-154.81422293,7.086e-05,2]
[327384974,1716037838540,-1043.25678867,7.086e-05,2]
[327384975,1716037838550,-154.81422293,7.086e-05,2]
[327384976,1716037838559,-154.81422293,7.086e-05,2]
[327384977,1716037838568,-328.32221374,7.086e-05,2]
[327384978,1716037838578,-9559.52730965,7.086e-05,2]
[327384979,1716037838587,-207.34451471,7.087e-05,2]
[327384980,1716037838596,-261.10136921,7.087e-05,2]
[327384981,1716037838605,-154.81422293,7.087e-05,2]
[327384982,1716037838614,-154.81422293,7.087e-05,2]
[327384983,1716037838623,-452.52831116,7.087e-05,2]
[327384984,1716037838633,-236.5182214,7.087e-05,2]
[327384985,1716037838644,-370.98329006,7.087e-05,2]
[327384986,1716037838653,-675.83241571,7.087e-05,2]
[327384987,1716037838663,-658.15339953,7.087e-05,2]
[327384988,1716037838671,-719.96474571,7.087e-05,2]
[327384989,1716037838680,-154.81422293,7.087e-05,2]
[327384990,1716037838690,-10508.75516608,7.087e-05,2]
[327384991,1716037838699,-154.81422293,7.088e-05,2]
[327384992,1716037838708,-154.81422293,7.088e-05,2]
[327384993,1716037838717,-154.81422293,7.089e-05,2]
[327384994,1716037838726,-2500.08162728,7.09e-05,2]
[327384995,1716037838735,-1897.58698072,7.161e-05,2]
[327384996,1716037838744,-1885.45852368,7.162e-05,2]
[327384997,1716037838754,-114016.44117932,7.162e-05,2]
[327384998,1716037838763,-154.81422293,7.168e-05,2]
[327384999,1716037838772,-1913.86705111,7.171e-05,2]
[327385000,1716037838781,-588.35271757,7.175e-05,2]
[327385001,1716037838791,-204.27807549,7.274e-05,2]
[327385002,1716037838800,-156.75733946,7.362e-05,2]
[327385003,1716037838809,-309.4430026,7.365e-05,2]
[327385004,1716037838818,-307.59750505,7.37e-05,2]
[327385005,1716037838828,-154.85750331,7.374e-05,2]
[327385006,1716037838838,-163.9105218,7.374e-05,2]
[327385007,1716037838847,-20096.79999963,7.376e-05,2]
[327385008,1716037838856,-24900.0,7.397e-05,2]
[327385009,1716037838865,-200.50632456,7.478e-05,2]
[327385010,1716037838874,-281.91116502,7.478e-05,2]
[327385011,1716037838883,-154.89239156,7.478e-05,2]
[327385012,1716037838893,-155.84275179,7.478e-05,2]
[327385013,1716037838902,-160.55778008,7.478e-05,2]
[327385014,1716037838911,-286.42527182,7.478e-05,2]
[327385015,1716037838921,-309.42755979,7.482e-05,2]
[327385016,1716037838930,-235.86255121,7.482e-05,2]
[327385017,1716037838939,-178.61091542,7.482e-05,2]
[327385018,1716037838948,-301.95911464,7.483e-05,2]
[327385019,1716037838957,-250.70868332,7.483e-05,2]
[327385020,1716037838966,-936.7051566,7.492e-05,2]
[327385021,1716037838975,-281.13686068,8.484e-05,2]
[327385022,1716037838985,-155.17992662,8.484e-05,2]
[327385023,1716037838999,-188.09848396,8.491e-05,2]
[327385024,1716037839009,-154.77779437,8.508e-05,2]
[327385025,1716037839019,-250.36109787,9e-05,2]
[327385026,1716037839030,-6081.8375463,9.062e-05,2]
[327385027,1716037839040,-1913.86705107,9.378e-05,2]
[327385028,1716037839049,-164.57702771,9.996e-05,2]
[327385029,1716037839059,-155.75234196,9.999e-05,2]
[327385030,1716037839071,-6416.54995712,0.0001,2]
[327385031,1716037839081,-666.92611432,0.0001,2]
[327385032,1716037839091,-9398.82663272,0.0001,2]
[327385033,1716037839101,-497.42815551,0.0001,2]
[327385034,1716037839112,-277.75241642,0.0001,2]
[327385035,1716037839122,-1017.82776253,0.0001,2]
[327385036,1716037839132,-154.81422293,0.0001,2]
[327385037,1716037839144,-1452.69,0.00010959,2]
[327385038,1716037839154,-2268.13,0.00010959,2]
[327385039,1716037839164,-1890.1,0.00010959,2]
[327385040,1716037839174,-1575.09,0.00010959,2]
[327385041,1716037839184,-1312.57,0.00010959,2]
[327385042,1716037839194,-1093.81,0.00010959,2]
[327385043,1716037839204,-911.51,0.00010959,2]
[327385044,1716037839215,-1913.86705107,0.00011485,2]
[327385045,1716037839225,-4036.32752057,0.000129,2]
[327385046,1716037839235,-1913.86705107,0.00013691,2]
[327385047,1716037839245,-599.528647,0.00013699,2]
[327385048,1716037839255,-1008.0412453,0.00013699,2]
[327385049,1716037839264,-3000.0,0.00013699,2]
[327385050,1716037839274,-283.58690319,0.000137,2]
[327385051,1716037839284,-1084.51096583,0.000138,2]
[327385052,1716037839294,-920.93404353,0.00014,2]
[327385053,1716037839304,-302.95134984,0.00014764,2]
[327385054,1716037839313,-1007.7246252,0.00014821,2]
[327385055,1716037839323,-1149.07076386,0.00015,2]
[327385056,1716037839332,-3699.56949019,0.00015,2]
[327385057,1716037839342,-2107.5414282,0.00015,2]
[327385058,1716037839352,-80000.0,0.00015,2]
[327385059,1716037839361,-849.14318497,0.00015,2]
[327385060,1716037839386,-93.3938696,0.00015,2]
[327385061,1716037839396,-1683.7621202,0.00015,2]
[327385062,1716037839406,-154.81070549,0.00015865,2]
[327385063,1716037839416,-1913.86705107,0.00015898,2]
[327385064,1716037839426,-1248.05355086,0.00015898,2]
[327385073,1716037839580,590.3458183,6.085e-05,2]
[327385082,1716037840381,-194.69034832,7.079e-05,2]
[327385083,1716037840397,-489.91056986,7.079e-05,2]
[327385084,1716037840407,-1350.43959976,7.079e-05,2]
[327385085,1716037840417,-154.81422293,7.08e-05,2]
[327385086,1716037840427,-26207.82489209,7.081e-05,2]
[327385087,1716037840437,-23850.76294223,0.00015898,2]
[327385162,1716037843319,-684.60091818,7.008e-05,2]
[327385164,1716037843329,-154.81422293,7.079e-05,2]
[327385166,1716037843339,-370.98329006,7.079e-05,2]
[327385168,1716037843348,-154.81422293,7.079e-05,2]
[327385170,1716037843357,-1897.58698072,7.079e-05,2]
[327385172,1716037843367,-1885.45852368,7.079e-05,2]
[327385175,1716037843376,-154.81422293,7.079e-05,2]
[327385178,1716037843385,-33752.1643938,7.081e-05,2]
[327387930,1716037930257,1907.4919919,6.016e-05,2]
[327387934,1716037978397,539.24,0.00016438,4]
[327387936,1716038017002,380.0609257,5.994e-05,2]
[327387958,1716038218321,364.91402204,5.994e-05,2]
[327387959,1716038231660,250.0,5.79e-05,2]
[327387960,1716038233414,364.91402204,5.994e-05,2]
[327387962,1716038238057,521.28631068,5.993e-05,2]
[327387963,1716038239255,1885.45852368,5.993e-05,2]
[327387964,1716038249266,354.16520658,5.994e-05,2]
[327387967,1716038422262,936.7051566,5.694e-05,2]
[327387968,1716038493896,2401.28849176,5.618e-05,2]
[327387969,1716038493926,3727.56414084,5.618e-05,2]
[327387970,1716038509287,6217.7244165,5.66e-05,2]
[327387974,1716038966156,-845.77422263,6.347e-05,2]
[327388019,1716039032064,-523.3238531,6.336e-05,2]
[327388021,1716039032074,-719.96474571,6.336e-05,2]
[327388023,1716039032083,-157.93380693,6.336e-05,2]
[327388025,1716039032092,-154.81422293,6.336e-05,2]
[327388027,1716039032102,-452.52831116,6.336e-05,2]
[327388029,1716039032111,-395.32769299,6.336e-05,2]
[327388031,1716039032120,-154.81422293,6.336e-05,2]
[327388033,1716039032129,-513.4844886,6.336e-05,2]
[327388035,1716039032138,-45.84689755,6.337e-05,2]
[327388038,1716039032154,-108.96732538,6.337e-05,2]
[327388040,1716039032163,-528.43613852,6.337e-05,2]
[327388042,1716039032172,-154.81422293,6.337e-05,2]
[327388044,1716039032181,-3062.48237355,6.337e-05,2]
[327388046,1716039032192,-154.81422293,6.337e-05,2]
[327388048,1716039032201,-186.89118678,6.337e-05,2]
[327388050,1716039032210,-26207.82489209,6.337e-05,2]
[327388052,1716039032220,-154.81422293,6.338e-05,2]
[327388054,1716039032229,-2634.32657847,6.338e-05,2]
[327388055,1716039032238,-154.81422293,6.338e-05,2]
[327388056,1716039032247,-1043.25678867,6.338e-05,2]
[327388058,1716039032256,-702.56585547,6.338e-05,2]
[327388060,1716039032266,-285.03925166,6.338e-05,2]
[327388061,1716039032277,-156.45299204,6.339e-05,2]
[327388062,1716039032286,-158.51655577,6.339e-05,2]
[327388063,1716039032296,-522.61290648,6.339e-05,2]
[327388065,1716039032305,-818.31964662,6.339e-05,2]
[327388067,1716039032316,-330.96158487,6.339e-05,2]
[327388069,1716039032325,-154.81422293,6.34e-05,2]
[327388071,1716039032335,-2465.73517847,6.34e-05,2]
[327388073,1716039032350,-1581.42130168,6.34e-05,2]
[327388075,1716039032359,-1417.90635911,6.34e-05,2]
[327388077,1716039032369,-7894.33531896,6.34e-05,2]
[327388080,1716039032380,-2678.78839717,6.34e-05,2]
[327388082,1716039032390,-1885.45852368,6.341e-05,2]
[327388084,1716039032400,-154.81422293,6.341e-05,2]
[327388086,1716039032409,-684.60091818,6.341e-05,2]
[327388088,1716039032424,-154.81422293,6.341e-05,2]
[327388089,1716039032434,-11053.04296534,6.341e-05,2]
[327388091,1716039032443,-1350.43959976,6.341e-05,2]
[327388094,1716039032453,-492.86440031,6.341e-05,2]
[327388096,1716039032462,-10508.75516608,6.341e-05,2]
[327388097,1716039032472,-194.45514723,6.341e-05,2]
[327388099,1716039032482,-154.81422293,6.342e-05,2]
[327388102,1716039032492,-2114.46454517,6.342e-05,2]
[327388104,1716039032502,-2597.41542727,6.342e-05,2]
[327388106,1716039032511,-328.32221374,6.342e-05,2]
[327388108,1716039032522,-154.81422293,6.342e-05,2]
[327388110,1716039032531,-207.34451471,6.342e-05,2]
[327388112,1716039032540,-316.15927372,6.343e-05,2]
[327388114,1716039032551,-1403.26792763,6.343e-05,2]
[327388115,1716039032560,-230.80285918,6.343e-05,2]
[327388116,1716039032570,-154.81422293,6.343e-05,2]
[327388117,1716039032579,-154.81422293,6.343e-05,2]
[327388118,1716039032588,-835.50091713,6.343e-05,2]
[327388119,1716039032598,-1338.92794901,6.343e-05,2]
[327388120,1716039032607,-154.81422293,6.343e-05,2]
[327388121,1716039032618,-236.5182214,6.343e-05,2]
[327388122,1716039032627,-154.81422293,6.343e-05,2]
[327388123,1716039032638,-154.81422293,6.343e-05,2]
[327388124,1716039032648,-238.75882037,6.343e-05,2]
[327388125,1716039032659,-525.64777211,6.344e-05,2]
[327388126,1716039032668,-675.83241571,6.344e-05,2]
[327388127,1716039032678,-1094.99548197,6.344e-05,2]
[327388128,1716039032689,-261.10136921,6.345e-05,2]
[327388129,1716039032698,-154.81422293,6.345e-05,2]
[327388130,1716039032707,-658.15339953,6.345e-05,2]
[327388131,1716039032716,-2634.32657847,6.345e-05,2]
[327388132,1716039032726,-410.45768134,6.345e-05,2]
[327388133,1716039032736,-154.81422293,6.345e-05,2]
[327388134,1716039032745,-1897.58698072,6.345e-05,2]
[327388135,1716039032755,-17669.22222057,6.345e-05,2]
[327388172,1716039038237,-9559.52730965,6.335e-05,2]
[327388173,1716039038247,-1716.94679494,6.336e-05,2]
[327388174,1716039038256,-690.19911136,6.336e-05,2]
[327388175,1716039038266,-154.81422293,6.336e-05,2]
[327388176,1716039038275,-1897.58698072,6.336e-05,2]
[327388177,1716039038285,-909.64823199,6.336e-05,2]
[327388178,1716039038295,-154.81422293,6.336e-05,2]
[327388179,1716039038304,-96347.21895875,6.345e-05,2]
[327388180,1716039038314,-1496.37630434,6.346e-05,2]
[327388181,1716039038324,-1322.98502375,6.347e-05,2]
[327388182,1716039038334,-1531.09364088,6.414e-05,2]
[327388183,1716039038344,-154.81422293,6.417e-05,2]
[327388184,1716039038354,-487.60891745,6.501e-05,2]
[327388185,1716039038364,-487.60891745,6.501e-05,2]
[327388186,1716039038375,-487.60891745,6.501e-05,2]
[327388187,1716039038387,-487.60891745,6.501e-05,2]
[327388188,1716039038397,-487.60891745,6.501e-05,2]
[327388189,1716039038407,-1007.7246252,6.506e-05,2]
[327388190,1716039038417,-154.81422293,6.523e-05,2]
[327388191,1716039038427,-156.75733946,6.99e-05,2]
[327388192,1716039038437,-309.4430026,6.99e-05,2]
[327388193,1716039038448,-307.59750505,6.99e-05,2]
[327388194,1716039038458,-154.85750331,6.991e-05,2]
[327388195,1716039038468,-163.9105218,6.991e-05,2]
[327388196,1716039038478,-286.42527182,6.998e-05,2]
[327388197,1716039038488,-178.61091542,6.998e-05,2]
[327388198,1716039038497,-250.70868332,6.998e-05,2]
[327388199,1716039038507,-155.17992662,6.998e-05,2]
[327388200,1716039038517,-160.55778008,6.998e-05,2]
[327388201,1716039038526,-200.50632456,6.998e-05,2]
[327388202,1716039038535,-154.89239156,6.998e-05,2]
[327388203,1716039038545,-301.95911464,6.998e-05,2]